[Event "USA Championship Women 2022"]
[Site "Saint Louis"]
[Date "2022.10.19"]
[Round "13.2"]
[White "Cervantes Landeiro, Thalia"]
[Black "Yu, Jennifer"]
[Result "0-1"]
[ECO "E17"]
[WhiteElo "2272"]
[BlackElo "2297"]
[Annotator "TA"]
[PlyCount "114"]
[EventDate "2022.09.05"]
[EventType "tourn"]
[EventCountry "USA"]
[SourceTitle "playchess.com"]
[Source "ChessBase"]
[SourceQuality "1"]
[TimeControl "40/5400+30:1800+30"]

{[%evp 12,114,15,10,25,25,27,34,35,28,45,42,45,39,54,18,27,0,0,-31,20,-60,-71,-66,-42,-51,-47,-59,-62,-52,-49,-63,-66,-103,-87,-140,-29,-135,-129,-140,-141,-157,-148,-160,-104,-183,-177,-173,-173,-204,-199,-219,-193,-206,-206,-205,-198,-201,-187,-289,-274,-322,-305,-398,-399,-374,-296,-315,-315,-281,-301,-409,-131,-364,-358,-345,-291,-620,-623,-654,-629,-1135,-1059,-1670,-1129,-1650,-1177,-10922,-9384,-5626,-5619,-3549,-3549,-29982,-29984,-29985,-29986,-29987,-29988,-29988,-29989,-29991,-29992,-29992,-29993]} 1. d4 {[%emt 0:00:03]} Nf6 {[%emt 0:00:10]} 2. c4 {[%emt 0:01:03]} e6 {[%emt 0:00:11]} 3. Nf3 {[%emt 0:00:38]} b6 {[%emt 0:00:19]} 4. g3 {[%emt 0:01:17]} Bb7 {[%emt 0:01:38]} 5. Bg2 {[%emt 0:00:09]} Be7 {[%emt 0:00:07]} 6. O-O {[%emt 0:01:04]} O-O {[%emt 0:00:14]} 7. Re1 {[%emt 0:00:53]} a5 {[%emt 0:00:29] E17: Queen's Indian: 4 g3 Bb7 5 Bg2 Be7.} 8. Bg5 {[%emt 0:02:31]} Ne4 {[%emt 0:05:51]} 9. Bxe7 {[%emt 0:03:51]} Qxe7 {[%emt 0:00:19] White is slightly better.} 10. Nfd2 {[%emt 0:05:10]} f5 {[%emt 0:02:21]} 11. Nxe4 {[%emt 0:10:55]} fxe4 {[%emt 0:01:52]} 12. Nc3 {[%emt 0:02:24]} d5 {[%emt 0:01:31] [#]} 13. cxd5 $146 {[%emt 0:12:03]} ({Predecessor:} 13. Qb3 a4 14. Nxa4 Qf6 15. e3 Qxf2+ 16. Kh1 dxc4 17. Qxc4 Bd5 18. Qxc7 {1-0 (28) Loiseau,Q (2443)-Nielsen,R (2339) Zadar 2018}) 13... exd5 {[%emt 0:01:09]} 14. Qb3 {[%emt 0:01:03]} Qb4 {[%emt 0:20:52]} 15. Red1 {[%emt 0:05:34]} Na6 {[%emt 0:08:03]} (15... Qxb3 $15 16. axb3 Na6) 16. Rac1 {[%emt 0:02:22]} (16. Qc2 $11) 16... Qxb3 $15 {[%emt 0:06:04]} 17. axb3 {[%emt 0:00:11]} Rad8 {[%emt 0:00:04]} 18. Nb5 {[%emt 0:12:39]} c6 {[%emt 0:07:57]} 19. Nc3 {[%emt 0:00:21]} Nb4 {[%emt 0:00:27]} 20. Na4 {[%emt 0:04:00]} Ba6 {[%emt 0:02:25]} 21. Bf1 {[%emt 0:09:15]} Rb8 {[%emt 0:01:52]} 22. Kg2 {[%emt 0:02:27]} g5 {[%emt 0:04:53]} 23. e3 {[%emt 0:04:40]} (23. f3 $142) 23... Bd3 {[%emt 0:03:40]} (23... Bxf1+ $17 24. Rxf1 Rf3) 24. Rd2 {[%emt 0:01:06]} (24. Bxd3 $11 {remains equal.} exd3 25. h3) 24... Rf6 $17 {[%emt 0:00:25]} 25. Kg1 {[%emt 0:04:37]} Kf7 {[%emt 0:03:20]} 26. Bxd3 {[%emt 0:02:57]} Nxd3 {[%emt 0:00:05]} (26... exd3 27. Kg2 $17) 27. Rf1 {[%emt 0:00:16][%cal Of2f3]} Rf3 {[%emt 0:03:23] Black is much more active. The white rooks are badly placed.} ({Better is} 27... Ke7 28. f4 gxf4 29. gxf4 c5 30. dxc5 bxc5) 28. Rc2 {[%emt 0:01:05] [#]} (28. Kg2 $17 Rf6 29. Kg1) 28... Nb4 $1 $19 {[%emt 0:00:38]} 29. Rd2 {[%emt 0:01:45]} Ke7 {[%emt 0:01:39]} 30. Rc1 {[%emt 0:01:43]} Kd6 {[%emt 0:01:30]} 31. Rf1 {[%emt 0:00:42]} Kc7 {[%emt 0:03:18]} 32. Nc3 {[%emt 0:00:37]} Rbf8 {[%emt 0:00:07]} 33. Ne2 {[%emt 0:01:18]} h5 {[%emt 0:03:24]} 34. Kg2 {[%emt 0:00:47]} c5 {[%emt 0:03:49]} ({Not} 34... Nd3 35. Rxd3 exd3 36. Nf4 R3xf4 37. gxf4 gxf4 38. Rd1 $17) 35. h4 {[%emt 0:02:36] [#]} (35. Ng1 {is a better defense.} R3f6 36. dxc5) 35... gxh4 $1 {[%emt 0:04:52]} 36. gxh4 {[%emt 0:00:09]} Rg8+ {[%emt 0:05:28]} 37. Ng3 {[%emt 0:00:08]} Rg4 {[%emt 0:00:07]} 38. Rh1 {[%emt 0:01:40]} Kd6 {[%emt 0:00:26]} 39. dxc5+ {[%emt 0:01:50]} bxc5 {[%emt 0:00:05][%cal Bb6c5,Bc5d4,Bd4d3][%mdl 32]} 40. Ra1 {[%emt 0:01:12]} Nc6 {[%emt 0:01:29]} 41. Rc1 {[%emt 0:12:02]} d4 $2 {[%emt 0:07:30]} (41... Ne7 $19 {has better winning chances. Strongly threatening ...Nf5.} 42. Rcd1 Kc6) 42. exd4 $2 {[%emt 0:06:34] Now White is beyond hope.} (42. Rc3 $17 {was the only chance.}) 42... cxd4 {[%emt 0:00:38]} 43. Rc4 {[%emt 0:05:11]} d3 {[%emt 0:04:49] Prevents Rdc2. Hoping for ...Ne5.} ({Weaker is} 43... Rxb3 44. Rdc2 Rb6 45. Rc1 $17) 44. Ra4 $2 {[%emt 0:02:44]} (44. Rxe4 Rfxg3+ 45. fxg3 Rxe4 46. Rxd3+ Nd4 47. Kh3) 44... Ne5 {[%emt 0:16:54]} 45. Rxa5 {[%emt 0:03:18]} Ng6 {[%emt 0:03:25]} 46. Ra6+ {[%emt 0:02:36]} Kc7 {[%emt 0:00:05] Threatens to win with ...Nf4+.} 47. Ra4 {[%emt 0:01:21]} Nxh4+ {[%emt 0:00:37]} 48. Kh3 {[%emt 0:00:51]} Nf5 {[%emt 0:00:36]} 49. Rc4+ {[%emt 0:00:19]} Kd6 {[%emt 0:01:03][%cal Rf5g3]} 50. Kh2 {[%emt 0:00:24]} Nxg3 {[%emt 0:00:52]} 51. fxg3 {[%emt 0:00:03][%mdl 4096] Endgame KRR-KRR} Kd5 {[%emt 0:00:23]} 52. Ra4 {[%emt 0:01:31]} Rgxg3 {[%emt 0:00:15] Black mates.} 53. Ra5+ {[%emt 0:00:18]} Kd4 {[%emt 0:00:03]} 54. Rxh5 {[%emt 0:00:17]} Ke3 {[%emt 0:00:07]} 55. Rd1 {[%emt 0:00:27]} Ke2 {[%emt 0:00:08]} 56. Ra1 {[%emt 0:00:46]} d2 {[%emt 0:00:06]} 57. Rh4 {[%emt 0:00:42]} e3 {[%emt 0:00:18] Weighted Error Value: White=0.80/Black=0.27 (precise)} 0-1

[Event "USA Championship Women 2022"]
[Site "Saint Louis"]
[Date "2022.10.19"]
[Round "13.3"]
[White "Morris-Suzuki, Sophie"]
[Black "Eswaran, Ashritha"]
[Result "1-0"]
[ECO "E20"]
[WhiteElo "2126"]
[BlackElo "2365"]
[Annotator "TA"]
[PlyCount "97"]
[EventDate "2022.09.05"]
[EventType "tourn"]
[EventCountry "USA"]
[SourceTitle "playchess.com"]
[Source "ChessBase"]
[SourceQuality "1"]
[TimeControl "40/5400+30:1800+30"]

{[%evp 9,97,-5,-1,-1,20,-4,0,-8,-9,0,-13,-15,-10,-18,33,35,27,20,22,28,25,0,-11,0,21,18,10,0,25,16,15,7,74,85,141,154,162,138,242,249,244,234,254,204,297,297,287,268,255,264,283,279,271,264,260,262,326,341,316,204,239,0,257,245,252,243,243,243,274,274,339,335,295,250,350,70,64,64,364,274,588,525,1556,1594,5202,1812,12846,12847,12846,12847]} 1. d4 {[%emt 0:00:04]} Nf6 {[%emt 0:00:23]} 2. c4 {[%emt 0:00:13]} e6 {[%emt 0:00:23]} 3. Nc3 {[%emt 0:00:13]} Bb4 {[%emt 0:00:07]} 4. f3 {[%emt 0:00:12]} c5 {[%emt 0:01:17]} 5. d5 {[%emt 0:00:26]} b5 {[%emt 0:00:37]} 6. e4 {[%emt 0:00:34] E20: Nimzo-Indian: 4 g3 and 4 f3.} d6 {[%emt 0:00:34] is cutting edge theory.} 7. Nge2 {[%emt 0:01:30]} bxc4 {[%emt 0:00:30] ...exd5 is the strong threat.} 8. Nf4 {[%emt 0:00:18] The position is equal.} e5 {[%emt 0:03:36]} 9. Nfe2 {[%emt 0:00:14]} Nbd7 {[%emt 0:02:57]} 10. a3 {[%emt 0:06:34]} Ba5 {[%emt 0:02:59]} 11. Ng3 {[%emt 0:03:29] [#] Prevents Nh5.} O-O $146 {[%emt 0:02:28]} (11... Nb6 $11) ({Predecessor:} 11... Nb6 12. Be2 Ng8 13. O-O Ne7 14. Nh5 O-O 15. Qe1 Ng6 16. Qg3 f5 17. Bg5 Qe8 {½-½ (43) Gareyev,T (2591)-Azarov,S (2586) Tegernsee 2019}) 12. Bxc4 $14 {[%emt 0:00:35]} Bxc3+ {[%emt 0:01:46]} 13. bxc3 {[%emt 0:00:16]} Qa5 {[%emt 0:00:08]} 14. Bd2 {[%emt 0:05:58]} Ba6 {[%emt 0:01:56]} 15. Qe2 {[%emt 0:04:21]} Bxc4 {[%emt 0:07:06]} 16. Qxc4 {[%emt 0:00:03]} Nb6 {[%emt 0:01:17]} 17. Qe2 {[%emt 0:00:53]} Qa4 {[%emt 0:05:43]} 18. O-O {[%emt 0:02:05]} Nc4 {[%emt 0:00:41]} 19. Bg5 {[%emt 0:00:32][%cal Bd2g5,Bg5e7,Be7d6][%mdl 32]} Nd7 {[%emt 0:03:09]} 20. Be7 {[%emt 0:05:41]} Rfe8 {[%emt 0:09:51]} (20... Rfb8 $11 {remains equal.}) 21. Nf5 $16 {[%emt 0:01:08]} g6 {[%emt 0:05:23]} (21... Rab8 $142) 22. Nxd6 {[%emt 0:08:34] White is more active.} Nxd6 {[%emt 0:00:55]} 23. Bxd6 {[%emt 0:00:03]} Qb3 {[%emt 0:01:08]} (23... Rac8 $16 24. Rad1 Qb3) 24. Rab1 {[%emt 0:13:34]} Qxc3 {[%emt 0:03:49]} 25. Qb5 {[%emt 0:00:25]} Nb6 {[%emt 0:05:37]} 26. Qxc5 {[%emt 0:04:31]} Qd3 {[%emt 0:04:50]} (26... Qxc5+ {was called for.} 27. Bxc5 Rec8) 27. Rfd1 $18 {[%emt 0:17:21]} Qe2 {[%emt 0:00:32]} 28. Re1 {[%emt 0:02:10]} Qd3 {[%emt 0:00:11]} 29. Rbd1 {[%emt 0:00:35]} Qb3 {[%emt 0:01:38]} 30. Bc7 {[%emt 0:00:42]} Qa4 {[%emt 0:01:04]} 31. Rc1 {[%emt 0:01:52]} Rac8 {[%emt 0:03:02]} 32. Qc6 {[%emt 0:04:20]} Qxa3 {[%emt 0:07:14]} 33. d6 {[%emt 0:00:21] Inhibits Qe7.} Red8 {[%emt 0:00:07]} 34. Qb7 {[%emt 0:06:38]} Rd7 {[%emt 0:01:38]} 35. Qc6 $2 {[%emt 0:03:40]} (35. h3 $18) 35... Qa4 $2 {[%emt 0:03:31][%mdl 8192]} (35... Rdd8 $1 $11 {and Black has nothing to worry.}) 36. Qxa4 {[%emt 0:01:44]} Nxa4 {[%emt 0:00:06] [#]} 37. Rc6 {[%emt 0:01:25] Prevents Nb6.} Nb6 {[%emt 0:03:50]} 38. Ra1 {[%emt 0:01:22]} Na8 {[%emt 0:02:56]} 39. Rxa7 {[%emt 0:00:10]} Nxc7 {[%emt 0:00:07]} 40. Rcxc7 {[%emt 0:03:32]} ({Less strong is} 40. dxc7 Kf8 41. g4 Ke7 $16) (40. Raxc7 Rdxc7 41. dxc7 Kf8 $16) 40... Rdxc7 {[%emt 0:00:08]} 41. dxc7 {[%emt 0:11:50][%mdl 4096] [#] Endgame Strongly threatening Kf2. KR-KR} ({Weaker is} 41. Rxc7 Rd8 $16) 41... Kf8 {[%emt 0:00:07]} 42. f4 $2 {[%emt 0:02:01]} (42. Kf2 $18 Ke7 43. h4) 42... exf4 $14 {[%emt 0:05:21]} 43. Kf2 $1 {[%emt 0:00:02] Black must now prevent Kf3.} Ke7 $2 {[%emt 0:05:02][%mdl 8192] Black cannot hold the game after this.} (43... f6 $14) 44. Kf3 $18 {[%emt 0:00:41]} Kd7 $2 {[%emt 0:02:09]} (44... g5 {is more resistant.} 45. Kg4 f6) 45. Kxf4 {[%emt 0:00:43] White is clearly winning.} f6 {[%emt 0:00:28]} 46. g4 {[%emt 0:01:39]} h6 {[%emt 0:01:31]} 47. h4 {[%emt 0:01:44]} Rf8 {[%emt 0:00:45]} 48. c8=Q+ {[%emt 0:00:38]} Kxc8 {[%emt 0:00:14]} 49. Ra8+ {[%emt 0:00:04] Weighted Error Value: White=0.28 (precise) /Black=0.48} 1-0

[Event "USA Championship Women 2022"]
[Site "Saint Louis"]
[Date "2022.10.19"]
[Round "13.4"]
[White "Wu, Rochelle"]
[Black "Foisor, Sabina-Francesca"]
[Result "1-0"]
[ECO "D45"]
[WhiteElo "2317"]
[BlackElo "2203"]
[Annotator "TA"]
[PlyCount "119"]
[EventDate "2022.09.05"]
[EventType "tourn"]
[EventCountry "USA"]
[SourceTitle "playchess.com"]
[Source "ChessBase"]
[SourceQuality "1"]
[TimeControl "40/5400+30:1800+30"]

{[%evp 18,119,-16,-21,-16,-31,0,0,0,-29,0,-52,-59,-58,-57,-64,-58,-44,-31,-25,-22,-22,-22,-20,-14,-64,-40,-43,-25,-129,-137,-150,-166,-159,-122,-190,-169,-172,-167,-173,-188,-167,322,294,302,290,440,425,531,512,558,485,727,395,522,425,518,518,586,516,705,696,679,662,687,681,656,579,585,578,606,596,616,589,691,676,724,697,752,745,704,694,870,665,794,794,1100,1084,975,690,1093,1080,1716,1591,12809,12791,7494,6981,29983,29984,29984,29985,29983,29979]} 1. d4 {[%emt 0:00:04]} d5 {[%emt 0:00:08]} 2. c4 {[%emt 0:00:09]} c6 {[%emt 0:00:07]} 3. Nf3 {[%emt 0:00:07]} Nf6 {[%emt 0:00:24]} 4. Nc3 {[%emt 0:00:08]} e6 {[%emt 0:00:32]} 5. e3 {[%emt 0:01:12]} Nbd7 {[%emt 0:00:30]} 6. cxd5 {[%emt 0:02:15]} exd5 {[%emt 0:01:34]} 7. Bd3 {[%emt 0:00:07]} Bd6 {[%emt 0:05:26]} 8. O-O {[%emt 0:01:16]} O-O {[%emt 0:01:26]} 9. b3 {[%emt 0:00:51]} Re8 {[%emt 0:04:04]} 10. Qc2 {[%emt 0:02:04]} Qe7 {[%emt 0:07:55] D45: Semi-Slav: 5 e3.} 11. Bb2 {[%emt 0:02:36]} Nf8 {[%emt 0:05:12]} 12. Rae1 {[%emt 0:06:44]} Ne4 {[%emt 0:08:22] [#] The position is equal.} 13. Nd2 $146 {[%emt 0:04:22][%cal Rc3e4]} ({Predecessor:} 13. Ne5 f6 14. Nc4 Bb8 15. Bxe4 dxe4 16. Ba3 Qe6 17. Nd2 f5 18. f4 Nd7 19. Nc4 {½-½ (30) Kuhn,G (2136)-Svane,R (2131) Germany 2009}) 13... Bf5 {[%emt 0:05:13]} ({Don't play} 13... Qh4 14. g3 Qh5 15. Ncxe4 (15. Ndxe4 dxe4 16. Bxe4 Bh3 $16) 15... dxe4 16. Bxe4 $16 (16. Nxe4 Bb4 $11)) 14. f4 {[%emt 0:02:32]} (14. Bxe4 $11 Bxe4 15. Ncxe4 (15. Ndxe4 dxe4 16. Rd1 Nd7 $11) 15... dxe4 16. f3) 14... Nxd2 $15 {[%emt 0:08:14]} 15. Qxd2 {[%emt 0:00:42]} Bxd3 {[%emt 0:00:02]} 16. Qxd3 {[%emt 0:00:07]} Bb4 {[%emt 0:00:06]} 17. e4 {[%emt 0:24:36]} Bxc3 {[%emt 0:06:25]} 18. Qxc3 {[%emt 0:00:05]} dxe4 {[%emt 0:02:20] ...f5 is the strong threat.} 19. d5 $1 {[%emt 0:05:06][%csl Gb2][%cal Rc3g7]} f6 {[%emt 0:03:44][%cal Bf7f6,Bf6f5][%mdl 32]} 20. dxc6 {[%emt 0:00:29]} Rac8 {[%emt 0:02:26]} 21. Qa5 {[%emt 0:04:24]} (21. Qc4+ $11 Kh8 22. c7) 21... bxc6 {[%emt 0:10:55]} 22. Ba3 {[%emt 0:12:27]} c5 {[%emt 0:01:03]} 23. Re3 {[%emt 0:01:51] [#]} (23. Rc1 $11 {remains equal.}) 23... f5 $1 $17 {[%emt 0:01:57]} 24. Bb2 {[%emt 0:02:59]} Ne6 {[%emt 0:04:42]} 25. Be5 {[%emt 0:09:32]} Red8 {[%emt 0:05:43]} 26. Rc1 {[%emt 0:01:03]} (26. Qa6 $17) 26... Rd7 {[%emt 0:03:10]} 27. b4 {[%emt 0:02:09]} Rcd8 {[%emt 0:05:00]} 28. bxc5 {[%emt 0:00:54]} Rd1+ {[%emt 0:01:25]} 29. Re1 {[%emt 0:00:24] [#]} R1d2 {[%emt 0:03:22][%mdl 8192]} (29... Rxe1+ 30. Qxe1 Nxc5 31. Qb4 $11) (29... R1d5 $1 $19 {[%cal Re6c5] avoids the disaster.} 30. Qa3 Nxc5) 30. Bd6 $18 {[%emt 0:02:59]} R2xd6 {[%emt 0:02:21]} 31. cxd6 {[%emt 0:00:07][%mdl 64] Discovered Attack} Qxd6 {[%emt 0:00:09]} (31... Qf6 $142 32. Qe5 (32. Qxa7 Nxf4 33. Rb1 Qxd6 $16) 32... Kf7) 32. Qxf5 {[%emt 0:02:19]} e3 {[%emt 0:01:57]} 33. Rxe3 {[%emt 0:01:45]} Nxf4 {[%emt 0:00:14]} 34. Rce1 {[%emt 0:01:34]} Rf8 {[%emt 0:00:45]} (34... Ng6 $142 35. Re8+ Rxe8 36. Rxe8+ Nf8) 35. Qc2 {[%emt 0:03:05]} Qb6 {[%emt 0:00:34]} 36. Qb3+ {[%emt 0:00:08]} Qxb3 {[%emt 0:00:21]} 37. Rxb3 {[%emt 0:00:15][%mdl 4096] Endgame KRR-KRN} Rd8 {[%emt 0:00:22]} 38. g3 {[%emt 0:00:28]} Nh3+ {[%emt 0:00:32]} 39. Kg2 {[%emt 0:00:06]} Ng5 {[%emt 0:00:02]} 40. Re2 {[%emt 0:00:05] Against Rd2} h6 {[%emt 0:00:56]} 41. Rb7 {[%emt 0:30:17]} a5 {[%emt 0:30:37]} 42. Rb5 {[%emt 0:00:17]} a4 {[%emt 0:00:20]} 43. Rb4 {[%emt 0:00:06]} a3 {[%emt 0:00:00]} 44. Rb3 {[%emt 0:00:00]} Ra8 {[%emt 0:00:00]} 45. h4 {[%emt 0:00:00]} Nh7 {[%emt 0:00:00]} 46. Re7 {[%emt 0:00:00]} Nf6 {[%emt 0:00:00]} 47. Rbb7 {[%emt 0:00:00]} Ne8 {[%emt 0:00:00]} 48. Ra7 {[%emt 0:00:00]} Rc8 {[%emt 0:00:00]} 49. Rxa3 {[%emt 0:00:00]} Kf8 {[%emt 0:00:00]} 50. Re2 {[%emt 0:00:00]} Kf7 {[%emt 0:00:00]} 51. Ra7+ {[%emt 0:00:00]} Kf6 {[%emt 0:00:00]} 52. Rae7 {[%emt 0:00:00]} Nc7 {[%emt 0:00:00] Prevents R2e6+.} 53. Rd7 {[%emt 0:00:00] Hoping for Rc2.} Ne8 {[%emt 0:00:00]} 54. a4 {[%emt 0:00:00][%cal Ba2a4,Ba4a5][%mdl 32]} g5 {[%emt 0:00:00]} 55. hxg5+ {[%emt 0:00:00]} hxg5 {[%emt 0:00:00]} 56. a5 {[%emt 0:00:00] Threatening mate with a6.} Kf5 {[%emt 0:00:00]} 57. Rf7+ {[%emt 0:00:00]} Kg6 {[%emt 0:00:00]} 58. Rf8 {[%emt 0:00:00] White mates.} Ra8 {[%emt 0:00:00]} 59. Rfxe8 {[%emt 0:00:00]} Rxa5 {[%emt 0:00:00]} 60. g4 {[%emt 0:00:00] Weighted Error Value: White=0.47/Black=0.46} 1-0

[Event "USA Championship Women 2022"]
[Site "Saint Louis"]
[Date "2022.10.19"]
[Round "13.5"]
[White "Lee, Alice"]
[Black "Lee, Megan"]
[Result "0-1"]
[ECO "D30"]
[WhiteElo "2263"]
[BlackElo "2226"]
[Annotator "TA"]
[PlyCount "120"]
[EventDate "2022.09.05"]
[EventType "tourn"]
[EventCountry "USA"]
[SourceTitle "playchess.com"]
[Source "ChessBase"]
[SourceQuality "1"]
[TimeControl "40/5400+30:1800+30"]

{[%evp 9,120,19,28,17,46,24,27,18,23,25,20,4,0,-6,11,0,-17,-60,-60,-162,-143,-268,-231,-232,-233,-220,-226,-289,-329,-441,-426,-488,-497,-477,-493,-427,-489,-452,-407,-529,-350,-536,-323,-429,-379,-533,-341,-323,-256,-286,-273,-263,-232,-266,-283,-273,-272,-283,-238,-247,-210,-283,-264,-260,-258,-292,-285,-497,-488,-706,-670,-737,-755,-729,-733,-689,-670,-781,-781,-725,-720,-727,-691,-672,-668,-909,-739,-730,-704,-2215,-2154,-1997,-1805,-1605,-1164,-2670,-2554,-3896,-1281,-29980,-29981,-29994,-29992,-29995,-29985,-29985,-29986,-29986,-29987,-29987,-29988,-29988,-29989]} 1. d4 {[%emt 0:00:01]} d5 {[%emt 0:00:03]} 2. c4 {[%emt 0:00:05]} c6 {[%emt 0:00:04]} 3. Nf3 {[%emt 0:00:03]} Nf6 {[%emt 0:00:09]} 4. e3 {[%emt 0:00:04]} e6 {[%emt 0:00:25]} 5. b3 {[%emt 0:00:05]} Nbd7 {[%emt 0:03:53]} 6. Bd3 {[%emt 0:00:32] D30: Queen's Gambit Declined: Systems without Nc3.} Ne4 {[%emt 0:03:30]} 7. Nbd2 {[%emt 0:00:23]} f5 {[%emt 0:02:04]} 8. O-O {[%emt 0:03:06] White has an edge.} Bd6 {[%emt 0:00:23]} 9. Bb2 {[%emt 0:01:14]} Qf6 {[%emt 0:00:19]} 10. Qc1 {[%emt 0:05:26]} g5 {[%emt 0:01:28]} 11. Ba3 {[%emt 0:11:14]} Bb8 {[%emt 0:06:53]} 12. g3 {[%emt 0:08:35]} h5 {[%emt 0:15:51][%cal Bh7h5,Bh5h4][%mdl 32] [#]} 13. Re1 $146 {[%emt 0:43:56]} ({Predecessor:} 13. Kg2 h4 14. Rh1 Qh6 15. Qc2 Ndf6 16. Ne5 h3+ 17. Kf1 Qh5 18. Be2 Qh7 19. Bf3 Nxd2+ 20. Qxd2 {1-0 (54) Abbott,P (1784)-Dalton,S (1958) Cammeray 2010}) 13... h4 {[%emt 0:01:03][%cal Rh4g3]} 14. Nf1 {[%emt 0:01:21] Black keeps a firm grip on the game.} ({White should try} 14. Re2 $15) 14... Qh6 $19 {[%emt 0:11:23] Strongly threatening ...Qh5.} 15. Bb2 {[%emt 0:03:28]} (15. g4 $17 fxg4 16. N3d2) 15... Ndf6 {[%emt 0:08:59]} 16. Qc2 {[%emt 0:02:26]} hxg3 {[%emt 0:11:29]} 17. fxg3 {[%emt 0:00:12] [#]} Nxg3 $1 {[%emt 0:01:55][%mdl 512]} 18. cxd5 {[%emt 0:07:23]} (18. Nxg3 Bxg3) 18... Nxf1 {[%emt 0:02:04]} 19. Bxf1 {[%emt 0:02:33]} exd5 {[%emt 0:00:43]} 20. Qg2 {[%emt 0:02:11]} Ne4 {[%emt 0:01:44]} 21. Bd3 {[%emt 0:00:28]} Be6 {[%emt 0:01:27]} 22. Ne5 {[%emt 0:01:23]} Bxe5 {[%emt 0:01:17]} 23. dxe5 {[%emt 0:00:04]} O-O-O {[%emt 0:00:16]} 24. Bd4 {[%emt 0:01:01]} Kb8 {[%emt 0:01:17]} 25. b4 {[%emt 0:00:57]} (25. Bxe4 {was the only defense.} dxe4 26. Rac1) 25... Qf8 {[%emt 0:01:37]} 26. Rab1 {[%emt 0:00:49]} Rh4 {[%emt 0:00:36]} 27. Kh1 {[%emt 0:02:33]} (27. Qc2 {was necessary.}) 27... Rg4 {[%emt 0:01:06]} 28. Qc2 {[%emt 0:00:20]} Rc8 {[%emt 0:07:26]} 29. Bxe4 {[%emt 0:00:48]} Rxe4 {[%emt 0:01:25]} ({Weaker is} 29... fxe4 30. Rf1 Qe7 31. Qc5 Qxc5 32. Bxc5 $17) 30. Qc5 {[%emt 0:01:22]} b6 {[%emt 0:00:57]} 31. Qxf8 {[%emt 0:00:20]} Rxf8 {[%emt 0:00:01]} 32. Rbd1 {[%emt 0:01:01]} Rc8 {[%emt 0:03:00][%cal Bf8c8,Bc8c7,Bc7b7,Bb7b3][%mdl 32]} 33. Rg1 {[%emt 0:00:54]} g4 {[%emt 0:00:21]} 34. Rge1 {[%emt 0:00:38]} Rc7 {[%emt 0:00:47]} 35. a3 {[%emt 0:00:26]} c5 {[%emt 0:00:28]} 36. bxc5 {[%emt 0:00:07]} bxc5 {[%emt 0:00:01]} 37. Bb2 {[%emt 0:00:52]} Rb7 {[%emt 0:00:05]} 38. Ba1 {[%emt 0:00:31]} (38. Bc3) 38... Rb3 {[%emt 0:00:24][%csl LRa3,LRe3]} 39. Rb1 {[%emt 0:00:30] [#]} (39. Kg1 $142) 39... Rexe3 $3 {[%emt 0:00:06][%mdl 512]} 40. Rec1 {[%emt 0:00:35]} (40. Kg2 Kc7) 40... Rxb1 {[%emt 0:00:20]} 41. Rxb1+ {[%emt 0:30:02][%mdl 4096] Endgame KRB-KRB} Kc7 {[%emt 0:30:20]} 42. Rc1 {[%emt 0:00:00]} c4 {[%emt 0:00:00]} 43. h4 {[%emt 0:00:00]} f4 {[%emt 0:00:00]} 44. Bd4 {[%emt 0:00:00]} Rxa3 {[%emt 0:00:00]} 45. h5 {[%emt 0:00:00]} Rh3+ {[%emt 0:00:00]} 46. Kg1 {[%emt 0:00:00]} Bf5 {[%emt 0:00:00] Hoping for ...Be4.} 47. Ra1 {[%emt 0:00:00]} Rxh5 {[%emt 0:00:00] Threatens to win with ...Be4.} 48. Rxa7+ {[%emt 0:00:00]} Kc6 {[%emt 0:00:00]} 49. Ra6+ {[%emt 0:00:00]} Kb5 {[%emt 0:00:00]} 50. Rb6+ {[%emt 0:00:00]} Ka5 {[%emt 0:00:00]} 51. e6 {[%emt 0:00:00]} Rh7 {[%emt 0:00:00] aiming for ...Be4.} 52. Rd6 {[%emt 0:00:00]} Be4 {[%emt 0:00:00] ( -> ...g3)} 53. Rd7 {[%emt 0:00:00]} g3 {[%emt 0:04:10][%csl Ge4][%cal Rh7h1]} 54. Kf1 {[%emt 0:00:00]} f3 {[%emt 0:00:00] Black mates.} 55. e7 {[%emt 0:00:00]} Rh1+ {[%emt 0:00:00]} 56. Bg1 {[%emt 0:00:00]} Rxg1+ {[%emt 0:00:00]} 57. Kxg1 {[%emt 0:00:00]} f2+ {[%emt 0:00:00]} 58. Kf1 {[%emt 0:00:00]} Bd3+ {[%emt 0:00:00]} 59. Kg2 {[%emt 0:00:00]} f1=Q+ {[%emt 0:00:00]} 60. Kxg3 {[%emt 0:00:00]} Qe1+ {[%emt 0:00:00] Weighted Error Value: White=0.57/Black=0.34} 0-1